bitfinex-derivatives/quotes_ETHF0:USTF0_20240822
["timestamp","ask_amount","ask_price","bid_price","bid_amount"]
[1724288789772,3.5706,2626.7,2626.5,0.38059]
[1724288791390,3.5706,2626.7,2626.3,0.00903871]
[1724288791679,3.5706,2626.7,2626.5,0.38059]
[1724288792078,7.3778,2626.7,2626.5,0.38059]
[1724288792686,7.3778,2626.7,2626.6,0.38058]
[1724288792981,3.5706,2626.7,2626.6,0.38058]
[1724288793281,7.3778,2626.7,2626.6,0.38058]
[1724288793580,7.3778,2626.7,2626.5,0.38059]
[1724288793776,3.5706,2626.7,2626.5,0.38059]
[1724288794485,3.5706,2626.7,2626.3,0.00903871]
[1724288794879,3.5706,2626.7,2626.5,0.3806]
[1724288795078,3.5706,2626.7,2626.4,0.3806]
[1724288795280,3.5706,2626.7,2626.5,0.3806]
[1724288795681,3.5706,2626.7,2626.4,0.3806]
[1724288795682,7.3778,2626.7,2626.4,0.3806]
[1724288795884,3.5706,2626.7,2626.4,0.3806]
[1724288796389,3.5706,2626.7,2626.3,0.00903871]
[1724288796390,3.8072,2626.6,2626.3,0.00903871]
[1724288796586,0.38063,2626.3,2625.9,0.38068]
[1724288796772,0.38063,2626.3,2625.4,6.1718]
[1724288796773,0.7328,2626.2,2625.4,6.1718]
[1724288796975,0.7328,2626.2,2626.1,0.38065]
[1724288797181,4.5408,2626.2,2626.1,0.38065]
[1724288797390,0.7328,2626.2,2626.1,0.38065]
[1724288797684,3.2078,2626.7,2626.6,0.38058]
[1724288799288,3.5879,2626.7,2626.6,0.38058]
[1724288799687,3.968,2626.7,2626.6,0.38058]
[1724288799891,7.7752,2626.7,2626.6,0.38058]
[1724288802991,3.5879,2626.7,2626.6,0.38058]
[1724288805391,3.5879,2626.7,2626.5,0.38059]
[1724288805586,3.5879,2626.7,2626.2,0.3683]
[1724288805587,7.77567,2626.7,2626.1,0.00439682]
[1724288805788,3.2078,2626.4,2626.3,0.38063]
[1724288808191,3.2078,2626.4,2626.2,0.38063]
[1724288809292,3.2078,2626.4,2626.1,0.00439682]
[1724288809293,0.38063,2626.2,2626.1,0.00439682]
[1724288809691,9.55953,2626.2,2626.1,0.00439682]
[1724288810398,4.1789,2626.2,2626.1,0.00439682]
[1724288810592,0.3709,2626.2,2626.1,0.00439682]
[1724288811397,0.3709,2626.2,2626.1,0.38504682]
[1724288812296,0.3852,2626.3,2626.2,0.38063]
[1724288813506,3.2078,2626.4,2626.3,0.38062]
[1724288815900,3.2078,2626.4,2626.3,4.18782]
[1724288816594,3.2078,2626.4,2626.2,0.38062]
[1724288816794,3.2078,2626.4,2626.3,0.38062]
[1724288818798,3.2078,2626.4,2626.3,4.18782]
[1724288820710,3.2078,2626.4,2626.1,0.00439682]
[1724288820896,3.2078,2626.4,2626.3,0.38062]
[1724288823512,3.2078,2626.4,2626.2,0.38063]
[1724288824406,0.3731,2626.3,2626.1,0.00439682]
[1724288824703,0.02103045,2626.2,2626.1,0.00439682]
[1724288824900,4.20966045,2626.2,2626.1,0.00439682]
[1724288825104,4.20966198,2626.2,2626.1,0.00439682]
[1724288825405,3.82903198,2626.2,2626.1,0.00439682]
[1724288826405,3.82903084,2626.2,2626.1,0.00439682]
[1724288826709,3.808,2626.2,2626.1,0.00439682]
[1724288827302,0.3731,2626.3,2626.1,0.00439682]
[1724288827703,3.808,2626.2,2626.1,0.00439682]
[1724288827900,4.18863,2626.2,2626.1,0.00439682]
[1724288828307,3.808,2626.2,2626.1,0.00439682]
[1724288828505,4.18863,2626.2,2626.1,0.00439682]
[1724288831503,3.808,2626.2,2626.1,0.00439682]
[1724288832105,3.808,2626.2,2626.1,0.38504682]
[1724288832311,0.3731,2626.3,2626.2,0.38063]
[1724288832607,4.18863,2626.2,2626.1,0.00439682]
[1724288832809,0.3731,2626.3,2626.1,0.38503682]
[1724288833315,0.3731,2626.3,2626.2,0.38063]
[1724288833512,0.3731,2626.3,2626.1,0.38503682]
[1724288835701,0.3731,2626.3,2626.2,0.38063]
[1724288835900,0.3731,2626.3,2626.1,0.00439682]
[1724288836506,0.3731,2626.3,2626.1,0.38503682]
[1724288841110,0.3731,2626.3,2626.2,0.38063]
[1724288841815,3.5809,2626.3,2626.2,0.38063]
[1724288842817,3.21798941,2626.9,2626.8,0.38055]
[1724288843525,3.21798941,2626.9,2626.7,0.38055]
[1724288843718,3.21798941,2626.9,2626.8,0.38055]
[1724288843904,3.21798941,2626.9,2626.7,0.38055]
[1724288844230,3.21798941,2626.9,2626.6,0.38058]
[1724288844231,3.59852941,2626.9,2626.6,0.38058]
[1724288844609,3.21798941,2626.9,2626.6,0.38058]
[1724288844905,3.21798941,2626.9,2626.7,0.38056]
[1724288845311,3.21798941,2626.9,2626.6,0.38057]
[1724288845507,3.21798941,2626.9,2626.3,0.7151]
[1724288845710,3.21798941,2626.9,2626.8,0.38055]
[1724288847514,3.21798941,2626.9,2626.7,0.38055]
[1724288849316,3.21798941,2626.9,2626.8,0.38055]
[1724288849521,3.21798941,2626.9,2626.7,0.38055]
[1724288849723,3.21798941,2626.9,2626.8,0.38055]
[1724288850219,3.21798941,2626.9,2626.7,0.38055]
[1724288850613,3.21798941,2626.9,2626.3,3.6791]
[1724288851723,3.21798941,2626.9,2626.8,0.38055]
[1724288852111,3.21798941,2626.9,2626.8,4.18775]
[1724288853507,0.01018941,2626.9,2626.8,4.18775]
[1724288854113,0.01018941,2626.9,2626.8,4.94545]
[1724288855112,0.01018941,2626.9,2626.8,1.13825]
[1724288857019,0.01018941,2626.9,2626.8,4.94545]
[1724288859017,6.73334247,2627.4,2627.2,0.38049]
[1724288859330,0.02099637,2627.3,2627.2,0.38049]
[1724288860023,0.02559134,2627.3,2627.2,0.38049]
[1724288860720,0.02559413,2627.3,2627.2,0.38049]
[1724288861123,0.00459497,2627.3,2627.2,0.38049]
[1724288861322,0.0255909,2627.3,2627.2,0.38049]
[1724288861825,0.02559105,2627.3,2627.2,0.38049]
[1724288863022,0.02559144,2627.3,2627.2,0.38049]
[1724288863416,0.00459497,2627.3,2627.2,0.38049]
[1724288864424,0.00459497,2627.3,2626.8,0.7577]
[1724288864730,0.00459497,2627.3,2627.2,0.38049]
[1724288866517,0.00459497,2627.3,2627.2,1.61449]
[1724288867722,0.00459497,2627.3,2627.2,5.42089]
[1724288868433,0.00459497,2627.3,2627.2,1.61449]
[1724288871625,0.00459497,2627.3,2627.1,1.234]
[1724288871930,5.42547497,2627.3,2627.0,1.234]
[1724288872227,3.58831,2627.1,2626.9,1.234]
[1724288872420,0.7283,2627.0,2626.9,1.234]
[1724288872618,1.0935,2627.0,2626.9,1.234]
[1724288872820,1.0935,2627.0,2626.9,1.61453]
[1724288873427,0.7207,2627.0,2626.9,1.61453]
[1724288874433,0.7207,2627.0,2626.9,0.38053]
[1724288874625,0.7207,2627.0,2626.8,0.38055]
[1724288874930,0.3689,2626.9,2626.8,0.38055]
[1724288876437,0.3689,2626.9,2626.6,0.38057]
[1724288877139,0.3689,2626.9,2626.5,2.961]
[1724288877638,0.3689,2626.9,2626.8,0.38055]
[1724288878335,0.7207,2627.0,2626.9,0.38053]
[1724288878539,0.00459497,2627.3,2626.6,0.95145]
[1724288878734,0.3731,2627.2,2627.1,0.3805]
[1724288881625,0.3731,2627.2,2627.0,0.38051]
[1724288883436,0.3731,2627.2,2627.1,0.3805]
[1724288889341,3.59219497,2627.3,2626.9,0.3565]
[1724288889342,3.59219497,2627.3,2627.2,0.38049]
[1724288889646,3.61319662,2627.3,2627.2,0.38049]
[1724288890231,3.59219497,2627.3,2627.2,0.38049]
[1724288890431,3.21239497,2627.3,2627.2,0.38049]
[1724288892050,3.59287497,2627.3,2627.0,0.38051]
[1724288892343,0.3491,2627.2,2627.0,0.38051]
[1724288893036,0.3491,2627.2,2627.1,0.3805]
[1724288895041,3.5569,2627.2,2627.1,0.3805]
[1724288895845,13.4533,2627.2,2626.3,0.38061]
[1724288896037,3.2078,2626.6,2626.2,0.38062]
[1724288896240,1.4559,2626.5,2626.2,0.38062]
[1724288896444,1.4559,2626.5,2626.4,1.234]
[1724288896445,1.0753,2626.5,2626.4,1.234]
[1724288897140,1.0753,2626.5,2626.4,1.6146]
[1724288900243,0.7166,2626.5,2626.4,1.6146]
[1724288900447,3.2078,2626.6,2626.5,0.38059]
[1724288900649,0.3857,2626.8,2626.7,0.38056]
[1724288900844,3.2078,2626.9,2626.8,0.38055]
[1724288902044,3.2078,2626.9,2626.6,1.234]
[1724288902045,4.4418,2626.9,2626.6,1.234]
[1724288902246,0.38055,2626.8,2626.6,1.61457]
[1724288902550,4.4418,2626.9,2626.6,1.61457]
[1724288902551,0.7531,2626.7,2626.6,1.61457]
[1724288902746,1.1032,2626.7,2626.6,1.61457]
[1724288902943,1.1032,2626.7,2626.6,1.234]
[1724288903250,5.29096,2626.7,2626.6,1.234]
[1724288904446,4.9104,2626.7,2626.6,1.61458]
[1724288904653,0.7224,2626.7,2626.6,1.61458]
[1724288907947,3.2078,2626.9,2626.8,0.38055]
[1724288908342,0.3574,2627.0,2626.9,0.38053]
[1724288908540,0.3574,2627.0,2626.9,1.61453]
[1724288909247,7.6799,2627.2,2627.1,0.3805]
[1724288909454,7.6799,2627.2,2627.0,1.234]
[1724288909755,8.06039,2627.2,2627.0,1.234]
[1724288909959,0.37609497,2627.3,2627.2,0.38049]
[1724288909960,0.00459497,2627.3,2627.2,0.38049]
[1724288910149,0.00459497,2627.3,2627.2,2.00019]
[1724288910549,0.00571668,2627.5,2627.4,0.38046]
[1724288910750,0.00571668,2627.5,2627.4,1.61446]
[1724288910947,0.00571668,2627.5,2627.4,5.42006]
[1724288911761,0.00895265,2627.5,2627.4,5.42006]
[1724288912452,0.00895265,2627.5,2627.4,7.14606]
[1724288914960,0.00895265,2627.5,2627.4,12.14606]
[1724288915455,0.00895265,2627.5,2627.4,7.14606]
[1724288918257,0.00895265,2627.5,2627.4,15.35386]
[1724288918451,0.00895265,2627.5,2627.4,16.30502]
[1724288919055,0.00728742,2627.5,2627.4,16.30502]
[1724288919246,0.3488,2628.4,2628.3,0.38033]
[1724288919443,3.2078,2628.6,2628.0,2.96]
[1724288919654,0.3488,2628.4,2628.3,0.38032]
[1724288920256,0.35184923,2628.4,2628.3,0.38441337]
[1724288921160,0.35184923,2628.4,2628.3,0.00409337]
[1724288922964,0.35184923,2628.4,2628.3,0.38442337]
[1724288924657,0.00304923,2628.4,2628.3,0.38442337]
[1724288924960,0.00304923,2628.4,2628.3,7.14922337]
[1724288930880,0.00304923,2628.4,2628.3,3.34442337]
[1724288931459,0.00304923,2628.4,2628.3,7.14922337]
[1724288932363,0.00304923,2628.4,2628.3,13.10005337]
[1724288933260,0.00304923,2628.4,2628.3,12.14922337]
[1724288933661,0.00571668,2628.6,2628.5,0.3803]
[1724288933858,0.00571668,2628.6,2628.5,4.1843]
[1724288934752,0.00853845,2628.6,2628.5,4.1843]
[1724288942871,1.099,2629.1,2629.0,0.38023]
[1724288942872,0.7441,2629.1,2629.0,0.38023]
[1724288943058,0.3841,2629.4,2629.3,0.38018]
[1724288943876,0.38863905,2629.4,2629.3,0.38018]
[1724288946962,0.00453905,2629.4,2629.3,0.38018]
[1724288950166,0.00453905,2629.4,2629.3,3.34018]
[1724288950476,0.3662,2630.0,2629.3,9.4774]
[1724288950664,0.3702,2629.9,2629.5,2.96]
[1724288950975,0.3496,2629.8,2629.7,0.38013]
[1724288951278,0.35363106,2629.8,2629.7,0.38013]
[1724288951466,0.00403106,2629.8,2629.6,0.38013]
[1724288951672,0.00403106,2629.8,2629.5,2.96570548]
[1724288951867,0.00403106,2629.8,2629.5,3.34585548]
[1724288952072,0.00403106,2629.8,2629.5,2.96570548]
[1724288952273,0.00403106,2629.8,2629.7,0.38013]
[1724288952582,0.00403106,2629.8,2629.5,2.96570548]
[1724288952981,0.00403106,2629.8,2629.6,0.38013]
[1724288953765,3.21183106,2629.8,2629.5,2.96570548]
[1724288953976,7.01423106,2629.8,2629.5,2.96570548]
[1724288954275,3.8024,2629.7,2629.5,0.00570548]
[1724288954667,3.8032,2629.6,2629.5,0.00570548]
[1724288954868,3.8024,2629.7,2629.5,0.00570548]
[1724288955367,3.21183106,2629.8,2629.5,0.00570548]
[1724288955368,3.8032,2629.6,2629.5,0.00570548]
[1724288955568,3.8024,2629.7,2629.5,0.00570548]
[1724288955979,3.8032,2629.6,2629.5,0.00570548]
[1724288956183,3.8024,2629.7,2629.5,0.00570548]
[1724288956582,3.21183106,2629.8,2629.5,0.38585548]
[1724288956883,3.21183106,2629.8,2629.5,0.00570548]
[1724288957070,3.21183106,2629.8,2629.5,0.38585548]
[1724288957982,3.21183106,2629.8,2629.6,0.38014]
[1724288958883,7.01423106,2629.8,2629.6,0.38014]
[1724288959386,3.21183106,2629.8,2629.7,0.38013]
[1724288961483,7.01423106,2629.8,2629.6,3.34013]
[1724288962002,3.21183106,2629.8,2629.7,0.38013]
[1724288962879,0.00403106,2629.8,2629.7,0.38013]
[1724288963380,0.00403106,2629.8,2629.7,4.18253]
[1724288966284,0.734,2630.3,2630.1,0.38006]
[1724288966586,0.734,2630.3,2630.1,3.34006]
[1724288967274,0.73687919,2630.3,2630.1,3.34006]
[1724288967478,0.73687919,2630.3,2630.2,0.38005]
[1724288967685,0.73687919,2630.3,2630.2,0.38416468]
[1724288969583,0.73687919,2630.3,2630.2,0.75246468]
[1724288970489,0.73687919,2630.3,2630.2,0.38416468]
[1724288971590,0.00287919,2630.3,2630.2,0.38416468]
[1724288976999,0.00287919,2630.3,2630.2,1.10856468]
[1724288978094,0.00287919,2630.3,2630.2,4.06856468]
[1724288979288,0.7451,2630.7,2630.6,0.38]
[1724288979484,0.7451,2630.7,2630.5,3.34]
[1724288980186,0.74784938,2630.7,2630.6,0.38]
[1724288980385,0.74784938,2630.7,2630.5,3.34]
[1724288981090,0.74784938,2630.7,2630.6,0.38]
[1724288981593,0.74784938,2630.7,2630.5,3.34]
[1724288981894,0.74784938,2630.7,2630.6,0.38]
[1724288982095,0.74784938,2630.7,2630.5,2.96]
[1724288982299,0.74784938,2630.7,2630.5,3.34]
[1724288982502,0.74784938,2630.7,2630.6,0.38]
[1724288982893,0.00274938,2630.7,2630.6,0.38]
[1724288985700,0.00274938,2630.7,2630.5,2.96]
[1724288985895,3.80434938,2630.7,2630.5,2.96]
[1724288986108,0.3502,2630.6,2630.5,2.96]
[1724288986306,0.7116,2630.6,2630.5,2.96]
[1724288986601,4.5132,2630.6,2630.5,2.96]
[1724288986803,0.7116,2630.6,2630.5,2.96]
[1724288987596,4.5132,2630.6,2630.5,2.96]
[1724288988503,0.7116,2630.6,2630.5,2.96]
[1724288989604,0.00274938,2630.7,2630.5,2.96]
[1724288989805,0.00274938,2630.7,2630.6,0.38]
[1724288990206,0.00274938,2630.7,2630.6,1.1188]
[1724288991208,0.00274938,2630.7,2630.6,0.38]
[1724288991708,4.18433938,2630.7,2630.5,2.96]
[1724288991912,0.3844,2630.6,2630.5,2.96]
[1724288992709,0.3844,2630.6,2630.3,0.38003]
[1724288992912,0.3845,2630.5,2630.4,0.38002]
[1724288996525,0.00274938,2630.7,2630.4,0.38002]
[1724288996526,0.00274938,2630.7,2630.6,0.38]
[1724288996721,0.00274938,2630.7,2630.6,1.612]
[1724289000836,0.00274938,2630.7,2630.6,2.3666]
[1724289001534,0.00274938,2630.7,2630.6,1.612]
[1724289001722,3.80434938,2630.7,2630.3,0.3842]
[1724289001924,3.2078,2630.5,2630.3,0.38003]
[1724289002125,0.38004,2630.3,2630.2,0.00411468]
[1724289002328,0.3635,2630.4,2630.2,0.00411468]
[1724289002534,0.3635,2630.4,2630.2,0.38415468]
[1724289002727,0.3709,2630.3,2630.2,0.38415468]
[1724289003224,0.3709,2630.3,2630.2,0.00411468]
[1724289004437,0.3709,2630.3,2630.2,0.38416468]
[1724289006741,0.3709,2630.3,2630.2,0.00411468]
[1724289006742,4.1725,2630.3,2630.2,0.00411468]
[1724289007029,4.55254,2630.3,2630.2,0.00411468]
[1724289007426,4.55254,2630.3,2629.5,2.96270548]
[1724289007427,0.3801,2629.9,2629.5,2.96270548]
[1724289007627,0.7392,2629.8,2629.5,2.96270548]
[1724289008441,0.7392,2629.8,2629.7,0.38013]
[1724289008836,4.5416,2629.8,2629.7,0.38013]
[1724289010030,3.2078,2630.2,2629.6,0.3771]
[1724289010232,3.5859,2630.2,2629.9,0.38009]
[1724289010643,0.381,2630.1,2629.9,0.38009]
[1724289011029,0.381,2630.1,2630.0,0.38008]
[1724289012638,0.381,2630.1,2629.9,0.38009]
[1724289012844,0.381,2630.1,2630.0,0.38008]
[1724289013235,3.5859,2630.2,2630.1,0.38007]
[1724289013437,3.2078,2630.2,2630.1,3.33707]
[1724289013640,3.2078,2630.2,2630.1,7.13947]
[1724289013834,3.5884,2630.6,2630.5,0.38001]
[1724289014034,3.60925652,2630.6,2630.5,0.38001]
[1724289014435,3.5884,2630.6,2630.5,0.38001]
[1724289015745,0.3806,2630.6,2630.5,0.38001]
[1724289015937,0.00274938,2630.7,2630.6,0.38]
[1724289018246,0.00274938,2630.7,2630.6,4.1816]
[1724289018443,0.00274938,2630.7,2630.6,4.65690194]
[1724289019651,0.00274938,2630.7,2630.6,5.00520194]
[1724289020352,0.00274938,2630.7,2630.6,5.00517624]
[1724289020755,0.00274938,2630.7,2630.6,10.00517624]
[1724289020949,3.2078,2631.2,2631.1,0.37992]
[1724289021249,3.2078,2631.2,2631.1,3.33692]
[1724289021849,0.7651,2631.4,2631.3,0.37989]
[1724289022043,0.76952979,2631.4,2631.3,0.37989]
[1724289025251,0.76952979,2631.4,2631.2,0.3479]
[1724289025445,0.76952979,2631.4,2631.2,0.7278]
[1724289026257,0.76952979,2631.4,2631.3,0.37989]
[1724289029951,0.00442979,2631.4,2631.3,0.37989]
[1724289035349,0.00442979,2631.4,2631.3,4.17989]
[1724289038655,0.00442979,2631.4,2631.3,7.38769]
[1724289039357,0.00442979,2631.4,2631.3,4.17989]
[1724289041155,0.00442979,2631.4,2630.9,0.00570548]
[1724289041156,8.80442979,2631.4,2630.9,0.00570548]
[1724289041356,3.58771,2631.2,2630.9,0.38564548]
[1724289041661,3.58771,2631.2,2631.0,0.37994]
[1724289041662,0.3741,2631.1,2631.0,0.37994]
[1724289041858,1.1049,2631.1,2631.0,0.37994]
[1724289043058,0.7308,2631.1,2631.0,0.37994]
[1724289043252,0.7308,2631.1,2631.0,0.76034]
[1724289044454,0.00442979,2631.4,2631.3,0.37989]
[1724289044658,0.00442979,2631.4,2631.3,7.13689]
[1724289045458,0.3535,2631.8,2631.6,0.37985]
[1724289045659,0.3535,2631.8,2631.6,3.33685]
[1724289046365,0.3535,2631.8,2631.7,0.37984]
[1724289046553,3.2078,2631.9,2631.8,0.37982]
[1724289046774,1.09926,2632.3,2632.0,0.37979]
[1724289047058,0.37978,2632.1,2632.0,2.957]
[1724289047261,0.37978,2632.1,2631.7,3.34100145]
[1724289047262,3.2078,2632.1,2631.7,3.34100145]
[1724289047559,3.2078,2631.8,2631.7,0.00417145]
[1724289047765,3.58762,2631.8,2631.7,0.00417145]
[1724289047962,13.12332,2631.8,2631.7,0.00417145]
[1724289048258,8.12332,2631.8,2631.7,0.00417145]
[1724289049853,13.12332,2631.8,2631.7,0.00417145]
[1724289051452,15.0735,2631.8,2631.1,2.957]
[1724289051657,0.37988,2631.4,2631.1,3.33691]
[1724289051860,3.2078,2631.5,2631.1,3.33691]
[1724289051861,0.7454,2631.3,2631.2,0.37991]
[1724289052366,0.37991,2631.2,2630.9,0.38564548]
[1724289052555,0.37991,2631.2,2630.9,0.01008547]
[1724289052556,0.37993,2631.1,2630.9,0.01008547]
[1724289052956,4.18074,2631.0,2630.9,0.01008547]
[1724289053261,6.31150791,2631.0,2630.3,0.38003]
[1724289053465,0.38,2630.6,2630.3,0.38003]
[1724289053761,3.2078,2630.7,2630.2,2.957]
[1724289053762,0.7454,2630.5,2630.4,0.38002]
[1724289054162,0.7454,2630.5,2630.4,0.38314989]
[1724289054365,0.3677,2630.5,2630.4,0.38314989]
[1724289054862,3.59480548,2630.7,2630.6,0.38]
[1724289055084,3.21350548,2630.7,2630.6,0.38]
[1724289057567,0.00570548,2630.7,2630.6,0.38]
[1724289057958,0.00570548,2630.7,2630.6,4.5298]
[1724289058669,0.00570548,2630.7,2630.6,0.7282]
[1724289058855,0.00570548,2630.7,2630.6,4.5298]
[1724289059259,0.00570548,2630.7,2630.6,9.5298]
[1724289059971,3.2078,2631.3,2631.1,0.37992]
[1724289060175,3.2078,2631.3,2631.1,3.33692]
[1724289060671,3.2078,2631.3,2631.0,0.37993]
[1724289060969,3.5877,2631.3,2631.0,0.37993]
[1724289061166,3.58771,2631.3,2630.9,0.37995]
[1724289061369,0.37992,2631.2,2630.9,0.37995]
[1724289061663,3.2078,2631.0,2630.8,2.957]
[1724289061970,0.7214,2630.9,2630.8,3.33697]
[1724289062155,3.2078,2631.0,2630.9,0.37995]
[1724289062361,3.2078,2631.0,2630.8,3.33696]
[1724289062584,0.3604,2630.9,2630.8,3.33696]
[1724289063561,0.361,2631.3,2630.8,6.7578]
[1724289063562,3.5688,2631.3,2630.8,6.7578]
[1724289063772,3.9242,2631.3,2631.1,0.37992]
[1724289064469,3.9242,2631.3,2631.2,0.37991]
[1724289065167,0.7164,2631.3,2631.2,0.37991]
[1724289065366,3.9242,2631.3,2631.2,0.37991]
[1724289065967,3.9242,2631.3,2631.1,0.37991]
[1724289066574,3.9242,2631.3,2631.2,0.37991]
[1724289066964,0.3554,2631.3,2631.2,0.37991]
[1724289068566,0.37624695,2631.3,2631.2,0.37991]
[1724289068769,0.3554,2631.3,2631.2,0.37991]
[1724289071683,0.363,2631.5,2631.4,0.37988]
[1724289071875,0.38384305,2631.5,2631.4,0.37988]
[1724289072867,0.38384229,2631.5,2631.4,0.37988]
[1724289073868,0.02084229,2631.5,2631.4,0.37988]
[1724289074073,0.78004229,2631.5,2631.4,0.37988]
[1724289075379,0.78004229,2631.5,2631.3,0.37989]
[1724289075587,0.02084229,2631.4,2631.3,0.37989]
[1724289075804,0.7592,2631.5,2631.3,0.37989]
[1724289077582,0.7592,2631.5,2631.2,0.3799]
[1724289077583,1.13907,2631.5,2631.2,0.3799]
[1724289078272,1.13907,2631.5,2631.1,2.957]
[1724289079281,1.13907,2631.5,2631.3,0.37989]
[1724289079490,0.7592,2631.5,2631.3,0.37989]
[1724289079781,0.3606,2631.6,2631.4,0.37988]
[1724289079989,0.3606,2631.6,2631.5,0.3545]
[1724289080369,4.1606,2631.6,2631.5,0.3545]
[1724289080780,4.1606,2631.6,2631.5,0.73437]
[1724289081171,4.1606,2631.6,2631.5,0.3545]
[1724289081877,4.54045,2631.6,2631.5,0.3545]
[1724289082282,4.54045,2631.6,2631.3,0.37989]
[1724289082581,0.37987,2631.5,2631.3,0.37989]
[1724289082785,0.3727,2631.4,2631.3,0.37989]
[1724289083783,0.37995,2630.9,2630.8,2.957]
[1724289083983,0.94985,2631.0,2630.2,0.00570548]
[1724289084285,0.38001,2630.5,2630.2,0.00570548]
[1724289084684,0.3697,2630.6,2630.4,0.38314989]
[1724289084875,3.2078,2630.7,2630.5,2.957]
[1724289085211,3.2078,2630.7,2630.6,0.38]
[1724289085380,3.2078,2630.7,2630.5,3.6967]
[1724289085580,3.2078,2630.7,2630.5,3.337]
[1724289086690,0.3539,2630.9,2630.7,0.37998]
[1724289086890,0.3539,2630.9,2630.5,2.957]
[1724289087082,0.76237,2630.8,2630.5,2.957]
[1724289088088,0.3824,2630.8,2630.5,3.337]
[1724289088289,0.3824,2630.8,2630.6,0.38]
[1724289090593,0.3824,2630.8,2630.5,3.337]
[1724289090891,3.58779,2630.7,2630.4,0.38314989]
[1724289091091,0.3539,2630.9,2630.7,0.37998]
[1724289091582,0.3539,2630.9,2630.6,0.37999]
[1724289092386,3.2078,2630.7,2630.6,0.37999]
[1724289092791,3.2078,2630.7,2630.5,3.337]
[1724289093287,0.3681,2630.6,2630.5,3.337]
[1724289094794,0.3681,2630.6,2630.5,2.957]
[1724289095097,0.3681,2630.6,2630.5,3.33701]
[1724289095898,3.2078,2630.7,2630.5,3.33701]
[1724289096691,3.2078,2630.7,2630.5,2.957]
[1724289097195,3.2078,2630.7,2630.6,0.38]
[1724289097596,7.0094,2630.7,2630.6,0.38]
[1724289098287,7.03025276,2630.7,2630.6,0.38]
[1724289100489,7.03025276,2630.7,2630.5,2.957]
[1724289100685,0.02085276,2630.6,2630.5,3.33701]
[1724289101198,3.2078,2630.7,2630.6,0.38]
[1724289101399,3.22865243,2630.7,2630.6,0.38]
[1724289101596,7.03025243,2630.7,2630.6,0.38]
[1724289101986,3.82245243,2630.7,2630.6,0.38]
[1724289102192,3.22865243,2630.7,2630.6,0.38]
[1724289102407,7.03025243,2630.7,2630.6,0.7579]
[1724289102602,7.03025243,2630.7,2630.6,1.9899]
[1724289102801,3.22865243,2630.7,2630.6,1.9899]
[1724289104799,0.02085243,2630.7,2630.6,1.9899]
[1724289105398,0.3544,2630.8,2630.6,1.9899]
[1724289108405,0.73437,2630.8,2630.6,1.9899]
[1724289108997,3.94217,2630.8,2630.6,1.9899]
[1724289109198,0.37999,2630.7,2630.4,0.00312989]
[1724289109402,3.94217,2630.8,2630.7,1.232]
[1724289109910,7.74297,2630.8,2630.7,1.232]
[1724289111493,7.363,2630.8,2630.7,1.232]
[1724289111695,7.74297,2630.8,2630.7,1.232]
[1724289113405,7.74297,2630.8,2630.5,0.38]
[1724289113603,0.37998,2630.7,2630.4,0.38314989]
[1724289113808,0.38,2630.6,2630.4,0.00312989]
[1724289114014,0.351,2630.5,2630.4,0.00312989]
[1724289114802,0.351,2630.5,2630.4,1.23512989]
[1724289115795,0.351,2630.5,2630.4,1.61514989]
[1724289118208,0.351,2630.5,2630.4,1.23512989]
[1724289120414,3.5588,2630.5,2630.4,1.23512989]
[1724289121315,3.5588,2630.5,2630.4,1.61514989]
[1724289121612,3.2078,2630.5,2630.4,1.61514989]
[1724289121911,3.2078,2630.5,2630.4,0.38314989]
[1724289122211,3.2078,2630.5,2630.4,1.61514989]
[1724289123812,0.37998,2630.7,2630.4,1.61514989]
[1724289124111,0.37998,2630.7,2630.6,1.232]
[1724289124318,3.58778,2630.7,2630.6,1.232]
[1724289125206,3.2078,2630.7,2630.6,1.232]
[1724289126902,3.2078,2630.7,2630.6,1.9825]
[1724289127705,3.58775,2631.0,2630.6,1.9825]
[1724289127904,3.2078,2631.0,2630.9,1.232]
[1724289128310,3.58774,2631.0,2630.9,1.232]
[1724289128511,3.60859087,2631.0,2630.9,1.232]
[1724289129614,3.58774,2631.0,2630.9,1.232]
[1724289129823,3.60859077,2631.0,2630.9,1.232]
[1724289130313,3.60859077,2631.0,2630.4,0.00312989]
[1724289130314,0.38001,2630.5,2630.4,0.00312989]
[1724289130611,7.58289733,2630.5,2630.4,0.00312989]
[1724289130816,6.38449733,2630.5,2630.4,0.00312989]
[1724289131013,12.46349733,2630.5,2630.4,0.00312989]
[1724289131810,12.46349733,2630.5,2630.4,1.23512989]
[1724289131811,5.28146733,2630.5,2630.4,1.23512989]
[1724289132713,5.28146733,2630.5,2630.4,0.00312989]
[1724289133817,5.26061,2630.5,2630.4,0.00312989]
[1724289134014,5.281466,2630.5,2630.4,0.00312989]
[1724289136619,5.26061,2630.5,2630.4,0.00312989]
[1724289137223,5.28146549,2630.5,2630.4,0.00312989]
[1724289137423,5.26061,2630.5,2630.4,0.00312989]
[1724289138012,1.09091,2630.5,2630.4,0.00312989]
[1724289139819,4.89251,2630.5,2630.4,0.00312989]
[1724289140127,4.91336656,2630.5,2630.4,0.00312989]
[1724289140320,6.14536656,2630.5,2630.4,0.00312989]
[1724289140923,0.38004,2630.3,2630.2,0.00570548]
[1724289141121,0.38008,2630.0,2629.9,0.3489]
[1724289141424,0.38008,2630.1,2629.9,0.3489]
[1724289141725,0.38008,2630.1,2630.0,1.232]
[1724289141931,0.73285652,2630.1,2630.0,1.23570371]
[1724289143029,0.35277652,2630.1,2630.0,1.23570371]
[1724289144530,0.73284652,2630.1,2630.0,1.23570371]
[1724289145931,1.08204652,2630.1,2630.0,1.23570371]
[1724289146737,4.28984652,2630.1,2630.0,1.23570371]
[1724289147728,3.90977652,2630.1,2630.0,1.23570371]